Cogmind - Beta 14 @@@ ROGUE MODE // 2024.09.21 @ 00:30:09 Player: ktur Result: Destroyed by YC-V1Z(R) with Subdweller Beam Cannon Performance ------------- Evolutions (0) 0 Regions Visited (2) 400 Robots Destroyed (22) 110 Value Destroyed (637) 637 Prototype IDs (13) 260 Alien Tech Used (0) 0 Bonus (0) 0 TOTAL SCORE: 1407 Bonus ------- None Cogmind --------- Core Integrity 0/250 Matter 295/300 Energy 30/170 System Corruption 0% Temperature Warning (331) Movement Rolling (130) Ox2 Location -10/Subcaves Parts ------- > --- POWER (1) -------- Makeshift Power Source > --- PROPULSION (2) --- Compact Wheel > --- UTILITY (2) ------ Large Storage Unit > --- WEAPON (2) ------- Subdweller Laser Subdweller Beam Cannon > --- INVENTORY (15) --- Makeshift Leg Subdweller Monowheel Makeshift Hover Unit Makeshift Flight Unit Scrap Shield Rainbow Chip Medium Laser Subdweller Laser Powered Cannon Subdweller Machine Gun Makeshift Shrapnel Gun Mining Laser Peak State ------------ > --- POWER ------------ Makeshift Power Source > --- PROPULSION ------- Compact Wheel > --- UTILITY ---------- Large Storage Unit Subdweller Optics > --- WEAPON ----------- Subdweller Laser Subdweller Beam Cannon > --- INVENTORY -------- Makeshift Leg Subdweller Monowheel Makeshift Hover Unit Makeshift Flight Unit Scrap Shield Rainbow Chip Medium Laser Subdweller Laser Powered Cannon Subdweller Machine Gun Makeshift Shrapnel Gun Mining Laser [Rating: 17] Favorites ----------- Power Ion Engine Engine Ion Engine Propulsion Light Treads Treads Light Treads Wheel Wheel Utility Large Storage Unit Device Seismic Detector Storage Large Storage Unit Weapon Light Cannon Energy Gun Subdweller Laser Energy Cannon Subdweller Beam Cannon Ballistic Gun Light Assault Rifle Ballistic Cannon Light Cannon Special Weapon Mining Laser Build | -11 -10 -10 ------- Run | Yrd Mat Sub Slots Evolved . | . . . Power . | . . . Propulsion . | . . . Utility . | . . . Weapon . | . . . Parts Attached 24 | 7 4 13 Power 5 | 1 1 3 Engine 5 | 1 1 3 Core . | . . . Reactor . | . . . Propulsion 4 | 2 . 2 Treads 2 | 2 . . Leg . | . . . Wheel 2 | . . 2 Hover . | . . . Flight . | . . . Utility 5 | 2 1 2 Device 3 | 1 . 2 Storage 2 | 1 1 . Processor . | . . . Hackware . | . . . Protection . | . . . Artifact . | . . . Weapon 10 | 2 2 6 Energy Gun 4 | 1 . 3 Energy Cannon 1 | . . 1 Ballistic Gun 1 | 1 . . Ballistic Cannon 2 | . 2 . Launcher . | . . . Special Weapon 2 | . . 2 Impact Weapon . | . . . Slashing Weapon . | . . . Piercing Weapon . | . . . Special Melee Weapon . | . . . Unidentified Prototypes . | . . . Parts Lost 8 | . . 8 Power 3 | . . 3 Propulsion 2 | . . 2 Utility 2 | . . 2 Weapon 1 | . . 1 Highest Loss Streak 3 | . . 3 To Critical Strikes . | . . . Average Slot Usage (%) 97 | . 100 96 Engine 13 | . 14 13 Treads 22 | . 28 17 Wheel 5 | . . 10 Device 12 | . 14 11 Storage 14 | . 14 14 Energy Gun 4 | . 1 7 Energy Cannon 4 | . . 8 Ballistic Cannon 15 | . 24 8 Special Weapon 1 | . . 3 Peak Build Rating 17 | 7 7 17 Average Rating 9 | 4 7 11 On Entrance 4 | . 7 7 Naked Turns . | . . . Heaviest Build 38 | 12 32 38 Greatest Support 40 | 40 40 40 Greatest Overweight (x) 3 | . . 3 Average Overweight (x) . | . . . Largest Inventory Capacity 15 | 8 15 15 Average Capacity 12 | 7 9 15 Most Carried 15 | 6 8 15 Average Carried 10 | 3 7 12 Final Capacity 15 | 8 15 15 Final Carried 14 | 5 8 14 Class Distribution -------------------- 100% | Mutant Dominant Class ---------------- Mutant | -10/Materials Mutant | -10/Subcaves Resources | -11 -10 -10 ----------- Run | Yrd Mat Sub Matter Collected 702 | 228 238 236 Remotely . | . . . Salvage Created 705 | 23 289 393 Parts 38 | 5 13 20 Haulers Intercepted 1 | . 1 . Recyclers Shooed 3 | 1 2 . Parts Field Recycled . | . . . Retrieved Matter . | . . . Parts Self-Destructed 12 | . . 12 Prevented . | . . . Kills | -11 -10 -10 ------- Run | Yrd Mat Sub Combat Hostiles Destroyed 19 | . 7 12 Guns 2 | . . 2 Cannons 16 | . 7 9 Classes Destroyed 6 | 1 4 1 Tunneler 1 | 1 . . Hauler 1 | . 1 . Recycler 1 | . 1 . Swarmer 5 | . 3 2 Grunt 4 | . 4 . Subdweller 10 | . . 10 Best Kill Streak 3 | 1 3 3 Combat Bots Only 3 | . 3 3 Max Kills in Single Turn 1 | 1 1 1 Gunslinging . | . . . Exploded . | . . . Melee . | . . . Uniques/NPCs Destroyed . | . . . Combat | -11 -10 -10 -------- Run | Yrd Mat Sub Hostile Shots Fired 91 | . 22 69 Missed 24 | . 9 15 Damage Taken 1175 | . 136 1039 Core 279 | . 7 272 Absorbed by Shields . | . . . Core Remaining (%) 100 | 100 . . Volleys Fired 72 | 2 21 49 Largest 2 | 2 2 2 Hottest 140 | 70 70 140 Shots Fired 122 | 4 42 76 Gun 17 | 4 . 13 Cannon 99 | . 42 57 Launcher . | . . . Special 6 | . . 6 Kinetic 75 | 2 42 31 Thermal 47 | 2 . 45 Explosive . | . . . Electromagnetic . | . . . Robot Hit Streak 11 | 3 4 11 Robot Miss Streak 3 | . 2 3 Penetration Max . | . . . Secondary Targets . | . . . Shots Hit Robots 75 | 3 22 50 Core Hits 29 | 2 11 16 Critical Kills 1 | . . 1 Critical Parts Destroyed . | . . . Critical Strikes 4 | . 2 2 Burn 1 | . . 1 Meltdown 1 | . . 1 Blast 2 | . 2 . Melee Attacks . | . . . Impact . | . . . Slashing . | . . . Piercing . | . . . Sneak Attacks . | . . . Combat Hostiles . | . . . Follow-up Attacks . | . . . Damage Inflicted 1593 | 32 450 1111 Guns 241 | 32 . 209 Cannons 1338 | . 436 902 Explosions . | . . . Melee . | . . . Ramming 14 | . 14 . Kinetic 774 | 7 436 331 Thermal 805 | 25 . 780 Explosive . | . . . Electromagnetic . | . . . Impact . | . . . Slashing . | . . . Piercing . | . . . Highest Corruption . | . . . Average Corruption . | . . . Corruption Purged . | . . . Corruption Blocked . | . . . Overload Shots . | . . . Overflow Damage 2 | . 2 . Projectiles 2 | . 2 . Explosions . | . . . Melee . | . . . Knockbacks 4 | . 3 1 Impact . | . . . Kinetic 4 | . 3 1 Secondary . | . . . Self-Inflicted Damage . | . . . Shots . | . . . Rammed 3 | . 3 . Targets Rammed 3 | . 3 . Kicked . | . . . Crushed . | . . . Highest Temperature 322 | 40 45 322 Average Temperature 38 | 20 15 75 Received Heat Transfer 590 | . 54 536 Siege Activations . | . . . Robots Corrupted . | . . . Combat Hostiles . | . . . Parts Fried . | . . . Impact Corruptions . | . . . Robots Melted 1 | . . 1 Combat Hostiles 1 | . . 1 Parts Melted 5 | . . 5 Heat Transferred 1224 | 74 . 1150 Parts Sabotaged . | . . . Parts Stolen . | . . . Parts Stripped . | . . . Power Chain Reactions . | . . . Alert | -11 -10 -10 ------- Run | Yrd Mat Sub Peak Influence 137 | 5 137 . Initial 3 | . 3 . Average 50 | 2 58 . Maximum Alert Level . | . . . Low Security (%) 100 | 100 100 . Level 1 . | . . . Level 2 . | . . . Level 3 . | . . . Level 4 . | . . . Level 5 . | . . . High Security . | . . . Max Security . | . . . Squads Dispatched 1 | . 1 . Investigation . | . . . Extermination . | . . . Reinforcement 1 | . 1 . Assault . | . . . Garrison . | . . . Intercept . | . . . Searches Triggered . | . . . Construction Impeded . | . . . Haulers Reinforced . | . . . Active Scanning Responses . | . . . Cargo Convoy Interrupts . | . . . Stealth | -11 -10 -10 --------- Run | Yrd Mat Sub Distress Signals . | . . . Communications Jammed . | . . . Distress Signals . | . . . Times Spotted 29 | . 8 21 Peak Tracking Total 4 | . 3 4 Tactical Retreats 4 | . . 4 Traps | -11 -10 -10 ------- Run | Yrd Mat Sub Traps Triggered 1 | . . 1 Indirectly . | . . . Trap Hack Attempts . | . . . Triggered . | . . . Disarmed . | . . . Reprogrammed . | . . . Reused . | . . . Traps Extracted . | . . . Installed . | . . . Triggered . | . . . Machines | -11 -10 -10 ---------- Run | Yrd Mat Sub Machines Disabled 2 | . 1 1 Max in Single Turn 1 | . 1 1 Machines Repaired . | . . . Machines Dismantled . | . . . Machines Sabotaged . | . . . Overloaded Fab Kills . | . . . Hacking | -11 -10 -10 --------- Run | Yrd Mat Sub Machines Accessed 4 | . 2 2 Terminals 2 | . 2 . Fabricators . | . . . Repair Stations . | . . . Recycling Units . | . . . Scanalyzers . | . . . Garrison Access . | . . . Total Hacks 15 | . 10 5 Successful 10 | . 5 5 Failed 5 | . 5 . Catastrophic . | . . . Database Lockouts . | . . . Manual 8 | . 8 . Terminals 10 | . 10 . Fabricators . | . . . Repair Stations . | . . . Recycling Units . | . . . Scanalyzers . | . . . Garrison Access . | . . . Terminal Hacks 10 | . 5 5 Record 4 | . . 4 Robot Analysis 2 | . 2 . Prototype ID Bank 1 | . 1 . Locate Traps 1 | . 1 . Transport Status 1 | . 1 . Derelict Proto ID Bank 1 | . . 1 Fabricator Hacks . | . . . Repair Station Hacks . | . . . Recycling Unit Hacks . | . . . Scanalyzer . | . . . Garrison Access Hacks . | . . . Unauthorized Hacks . | . . . Terminals . | . . . Fabricators . | . . . Repair Stations . | . . . Recycling Units . | . . . Scanalyzers . | . . . Garrison Access . | . . . Data Cores Recovered . | . . . Used . | . . . Hacking Detections 1 | . 1 . Full Trace Events . | . . . Feedback Events . | . . . Feedback Blocked . | . . . Robot Schematics Acquired . | . . . Robots Built . | . . . Authchips . | . . . Time . | . . . Total Robot Build Rating . | . . . Part Schematics Acquired . | . . . Parts Built . | . . . Authchips . | . . . Time . | . . . Total Part Build Rating . | . . . Parts Repaired . | . . . Time . | . . . Parts Recycled . | . . . Recycled Matter . | . . . Retrieved Matter . | . . . Retrieved Components . | . . . Parts Scanalyzed . | . . . Part Schematics Acquired . | . . . Parts Damaged . | . . . Bothacking | -11 -10 -10 ------------ Run | Yrd Mat Sub Used RIF Installer . | . . . Robots Hacked . | . . . Non-combat . | . . . Combat . | . . . Robot Hacks Applied . | . . . Relay Couplers Released . | . . . Fabnet Peak Effective % . | . . . Robots Rewired . | . . . Allies Hacked . | . . . Hacks Repelled . | . . . Allies | -11 -10 -10 -------- Run | Yrd Mat Sub Total Allies . | . . . Largest Group . | . . . Highest-Rated Group . | . . . Highest-Rated Ally . | . . . Total Orders . | . . . Ally Attacks . | . . . Total Damage . | . . . Kills . | . . . Allies Corrupted . | . . . Allies Melted . | . . . Intel | -11 -10 -10 ------- Run | Yrd Mat Sub Robot Analysis Total 2 | . 2 . Derelict Logs Recovered 2 | . . 2 Drone Launches . | . . . Drone Recoveries . | . . . Exploration | -11 -10 -10 ------------- Run | Yrd Mat Sub Turns Passed 1807 | 114 709 984 Spaces Moved 981 | 59 322 600 Core 1 | 1 . . Treads 653 | 58 322 273 Legs . | . . . Wheels 327 | . . 327 Hover . | . . . Flight . | . . . Fastest Speed 50 | 50 160 105 Average Speed 143 | 158 160 132 Slowest Speed 160 | 160 160 160 Overloaded Moves . | . . . Propulsion Burnouts . | . . . Robots Hopped . | . . . Cave-ins Triggered . | . . . Exploration Rate (%) 26 | 5 43 32 Regions Visited 2 Branch Regions 1 Pre-discovered Areas 1 | . . 1 Known Exits Taken . | . . . Unknown Exits Taken 2 | 1 1 . Scrap Searched 5 | . . 5 Spaces Dug . | . . . Terrain Destroyed . | . . . Melee . | . . . Projectile . | . . . AOE . | . . . Terrain Rammed . | . . . Walls Destroyed . | . . . Machines Disabled . | . . . Actions | -11 -10 -10 --------- Run | Yrd Mat Sub Total 1244 | 74 472 698 Wait 132 | . 116 16 Move 979 | 58 321 600 Hop . | . . . Pick Up 25 | 7 4 14 Fast Attach 7 | 5 . 2 Attach 10 | 2 . 8 Detach . | . . . Swap 7 | . 4 3 Drop 9 | . 3 6 Fire 72 | 2 21 49 Melee . | . . . Ram . | . . . Kick . | . . . Crush 3 | . 3 . Escape Stasis . | . . . Rewire . | . . . Trap . | . . . Miscellaneous . | . . . Route ------- -11/Scrapyard -10/Materials (discovered 2 exits: [*Mat] / *Sub) -10/Subcaves (discovered 1 exit: [*Rec]) History --------- Turn | Location | Event 11 | -11/Scrapyard | Discovered new exit (range 14) 115 | -11/Scrapyard | Entered Materials 313 | -10/Materials | Build established: Mutant 610 | -10/Materials | Discovered new exit (range 6) 816 | -10/Materials | Discovered new exit (range 6) 824 | -10/Materials | Entered Subcaves 866 | -10/Subcaves | Discovered new exit (range 13) 963 | -10/Subcaves | Visited Clippyterm 968 | -10/Subcaves | Learned location of Deep Caves (-7) 968 | -10/Subcaves | Learned Research machine intel 1033 | -10/Subcaves | Learned Materials emergency access door positions 1105 | -10/Subcaves | Learned Materials trap positions 1140 | -10/Subcaves | Shifting Twisted Machinery released Sub. Laser 1142 | -10/Subcaves | Shifting Twisted Machinery released Sub. Beam Cannon 1194 | -10/Subcaves | Disturbed a concealed Subdweller 1380 | -10/Subcaves | Visited 4L-MR0's lab 1400 | -10/Subcaves | Found Powered Cannon 1464 | -10/Subcaves | A Subdweller sparked back to life 1464 | -10/Subcaves | A Subdweller sparked back to life 1464 | -10/Subcaves | A Subdweller sparked back to life 1469 | -10/Subcaves | Core integrity fell below 50% 1539 | -10/Subcaves | Found Rainbow Chip 1791 | -10/Subcaves | Core integrity fell below 20% 1808 | -10/Subcaves | Destroyed by YC-V1Z(R) with Subdweller Beam Cannon Last Messages --------------- 01511_ 77-T49(R) suffers critical hit (Meltdown). 01511_ Sub. Monowheel melted. 01511_ Sub. Optics melted. 01517_ AV-CUO(R) destroyed. 01523_ Sub. Beam Cannon melted. 01523_ UX-ZD5(R) destroyed. 01532_ Dropped Lgt. Treads. 01534_ Acquired Sub. Monowheel. 01536_ Acquired 10 matter. 01539_ Dropped Lgt. Assault Rifle. 01539_ Acquired Rainbow Chip. 01777_ YC-V1Z(R) emerges from the Twisted Machinery. 01789_ Lgt. Ion Engine destroyed. 01790_ YI-8WF(R) destroyed. 01795_ YC-V1Z(R) affixes Scrap Shield Fragment to Scrap Shield. 01797_ Wheel destroyed. 01800_ Sub. Optics shoots sparks and powers down. 01803_ YC-V1Z(R) affixes Scrap Shield Fragment to Scrap Shield. 01804_ Broken Sub. Optics destroyed. 01804_ Critical hit (Meltdown: +260). Map ----- +----------------------------------------------------+ | ?????????????????????????????????????????????????? | | ?????????????????????????????????????????????????? | | ?????????????????????????????????????????????????? | | ??????????????? ?????????????????????????????????? | | ??????????????? ?????????????????????????????????? | | ??????????????? ?????????????????????????????????? | | ??????????????? ?????????????????????????????????? | | ??????????????? ###??????????????????????????????? | | ??????????????? ####???????????????????????????? | | ??????????????? ##??????????????????????????? | | ??????????????? #??????????????????????????? | | ??????????????? #???????????????????????????? | | ??????????????? #????????????????????????????? | | ???????????????# #????????????????????????????? | | ??????????????## #????????????????????????????? | | ?????????????## ?????????####?????????????????? | | ???????###?### #??????????# #?????????????????? | | ?????### ### #??????##### ##????#???????????? | | ?##### ## ##?????# ## #### ##??????????? | | ?# ####### !*& ##?????????? | | ## ## ! %R ""##????????? | | # =[& "" #????????? | | # #### ### "" """ ?????? | | ## ###??###### ##?## """" """ ?????? | | ## ###??????# #????#"" """ ????? | | #??????### @ #?????"" ""? ???? | | ##### ##???????## #######?????" ###"???????? | | #???# #????????# ##???????????? ###??????????? | | #???## ##???????## ##????????????? #????????????? | | #????# ##???????###?????????????? ????????????? | | ##???# #?????????????????????????"????????????? | | ##### ##?????????????????????????##???????????? | | ##???????????????????????????????????????? | | #########????????????????????????????????????????? | | ?????????????????????????????????????????????????? | | ?????????????????????????????????????????????????? | | ?????????????????????????????????????????????????? | | ?????????????????????????????????????????????????? | | ?????????????????????????????????????????????????? | | ?????????????????????????????????????????????????? | | ?????????????????????????????????????????????????? | | ?????????????????????????????????????????????????? | | ?????????????????????????????????????????????????? | | ?????????????????????????????????????????????????? | | ?????????????????????????????????????????????????? | | ?????????????????????????????????????????????????? | | ?????????????????????????????????????????????????? | | | | | | | +----------------------------------------------------+ Best States ------------- Heat Dissipation 35 Energy Generation 10 Energy Capacity 250 Matter Stores 300 Matter Capacity 300 Sight Range 21 Terrain Scan Density 10 Evasion (%) 40 Recoil Reduction 2 Item Schematics ----------------- None Robot Schematics ------------------ None Fabricated ------------ Nothing Alien Tech Used ----------------- None Achievements -------------- None Challenges ------------ None Game ------ Seed ArcRelaySheargun Manual? 0 Play Time 00:09:54 Cumulative 793.7 hours Start 2024.09.21 @ 00:18:52 End 2024.09.21 @ 00:30:09 Sessions 1 Manual Loads 0 Difficulty Rogue Special Mode None Game No. 793 Rogue 793 Adventurer 0 Explorer 0 Win Type - Total 39 Types 14/4/11/2/0/0/5/2/1 Lore% 96 Gallery% 92 Achievement% 84 Wizard Run 0 Options --------- Layout 0 ASCII 0 Keyboard 0 Movement Numpad Keybinds 0 Fullscreen 1 Font 18/Smallcaps Map View 76x50 Zoom Use 0% Tactical HUD 1 Map Filters NONE Filters NONE Steam 1 RUN: b04febb8-217f-4ebb-9a36-13e89659fa7e